bitfinex/quotes_BTCUSD_20250902
["timestamp","ask_amount","ask_price","bid_price","bid_amount"]
[1756847292314,0.00157513,111660.0,111650.0,0.79426486]
[1756847292731,0.00157513,111660.0,111650.0,0.94526486]
[1756847293092,0.00157513,111660.0,111650.0,0.95736795]
[1756847293472,0.00157513,111660.0,111650.0,0.95636795]
[1756847293680,0.00157513,111660.0,111650.0,0.96036795]
[1756847293892,0.00157513,111660.0,111650.0,0.80736795]
[1756847294106,0.00157513,111660.0,111650.0,0.81036795]
[1756847294308,0.00157513,111660.0,111650.0,0.96132795]
[1756847294722,0.00157513,111660.0,111650.0,0.5563034]
[1756847295385,0.00157513,111660.0,111650.0,0.95728795]
[1756847295586,0.00157513,111660.0,111650.0,0.95714704]
[1756847295784,0.00157513,111660.0,111650.0,0.96014704]
[1756847295985,0.00157513,111660.0,111650.0,0.95714704]
[1756847296827,0.00157513,111660.0,111650.0,0.93628704]
[1756847297251,0.00157513,111660.0,111650.0,0.93428704]
[1756847297450,0.00157513,111660.0,111650.0,0.93628704]
[1756847297671,0.00157513,111660.0,111650.0,0.3805234]
[1756847297888,0.00157513,111660.0,111650.0,0.93624704]
[1756847299698,0.00157513,111660.0,111650.0,0.78536704]
[1756847299905,0.00157513,111660.0,111650.0,0.93624704]
[1756847300550,0.00355513,111660.0,111650.0,0.42505432]
[1756847300772,0.00355513,111660.0,111650.0,0.39981121]
[1756847300978,0.0063538,111660.0,111650.0,0.39981121]
[1756847301188,0.41119744,111660.0,111650.0,0.40287121]
[1756847301432,0.40839877,111660.0,111650.0,0.40287121]
[1756847301643,0.40839877,111660.0,111650.0,0.39991121]
[1756847301845,0.40839877,111660.0,111650.0,0.39685121]
[1756847302054,0.40839877,111660.0,111650.0,0.39785121]
[1756847302675,0.40839877,111660.0,111650.0,0.24525121]
[1756847302879,0.00355513,111660.0,111650.0,0.39785121]
[1756847303087,0.41119744,111660.0,111650.0,0.39585121]
[1756847303289,0.40839877,111660.0,111650.0,0.39685121]
[1756847304043,0.99481758,111660.0,111650.0,0.002]
[1756847304269,0.99481758,111660.0,111650.0,0.15456]
[1756847304494,0.99481758,111660.0,111650.0,0.15576]
[1756847304495,1.08673357,111660.0,111650.0,0.15576]
[1756847304728,1.85850717,111660.0,111650.0,0.002]
[1756847304989,1.48299282,111660.0,111650.0,0.1558]
[1756847305244,1.45366353,111660.0,111650.0,0.1558]
[1756847305887,1.45366353,111660.0,111650.0,0.1548]
[1756847306107,1.45366353,111660.0,111650.0,0.1538]
[1756847307601,1.95937891,111660.0,111610.0,0.25447382]
[1756847307827,0.17917538,111630.0,111620.0,0.15524]
[1756847308048,0.1840548,111630.0,111620.0,0.15524]
[1756847308262,0.58609902,111630.0,111620.0,0.15524]
[1756847308484,0.61303514,111630.0,111620.0,0.15524]
[1756847309148,0.61303514,111630.0,111620.0,0.001]
[1756847309377,0.61303514,111630.0,111620.0,0.15648]
[1756847309595,0.2081915,111630.0,111620.0,0.15548]
[1756847310144,0.61303514,111630.0,111620.0,0.15548]
[1756847311978,0.02901612,111630.0,111620.0,0.33969935]
[1756847312188,0.02973554,111630.0,111620.0,0.33969935]
[1756847312392,0.02693612,111630.0,111620.0,0.33969935]
[1756847312602,0.20609942,111630.0,111620.0,0.33969935]
[1756847313487,0.20609942,111630.0,111620.0,0.34069935]
[1756847313706,0.61094306,111630.0,111620.0,0.34069935]
[1756847313940,0.02693612,111630.0,111620.0,0.34069935]
[1756847314406,0.02693612,111630.0,111620.0,0.34169935]
[1756847315048,0.61374248,111630.0,111620.0,0.18621935]
[1756847315293,0.61094306,111630.0,111620.0,0.34145935]
[1756847315742,0.20609942,111630.0,111620.0,0.34145935]
[1756847315954,0.43177976,111630.0,111620.0,0.34145935]
[1756847316169,0.20609942,111630.0,111620.0,0.34145935]
[1756847316381,0.61094306,111630.0,111620.0,0.34145935]
[1756847316972,0.43177976,111630.0,111620.0,0.34145935]
[1756847317397,0.02693612,111630.0,111620.0,0.34145935]
[1756847317618,0.43177976,111630.0,111620.0,0.34145935]
[1756847318231,0.02693612,111630.0,111620.0,0.34145935]
[1756847318483,0.43177976,111630.0,111620.0,0.34145935]
[1756847319120,0.43177976,111630.0,111620.0,0.32874935]
[1756847321399,0.43390976,111630.0,111620.0,0.32874935]
[1756847321610,0.61307306,111630.0,111620.0,0.32894935]
[1756847322046,0.61602306,111630.0,111620.0,0.32882935]
[1756847322952,0.61602306,111630.0,111620.0,0.18331935]
[1756847323177,0.61602306,111630.0,111620.0,0.002]
[1756847323392,0.61602306,111630.0,111620.0,0.15728]
[1756847323604,0.61602306,111630.0,111620.0,0.002]
[1756847324036,0.61602306,111630.0,111620.0,0.15628]
[1756847324247,0.61602306,111630.0,111620.0,0.001]
[1756847324454,0.61602306,111630.0,111620.0,0.15624]
[1756847324737,0.61602306,111630.0,111620.0,0.15524]
[1756847325909,0.61602306,111630.0,111620.0,0.15516]
[1756847326322,0.61602306,111630.0,111620.0,0.33433935]
[1756847327357,0.61602306,111630.0,111620.0,0.15516]
[1756847328178,0.61602306,111630.0,111620.0,0.33433935]
[1756847329014,0.61602306,111630.0,111620.0,0.15516]
[1756847330570,0.61602306,111630.0,111620.0,0.15492]
[1756847331417,0.61602306,111630.0,111620.0,0.33409935]
[1756847331652,0.21117942,111630.0,111620.0,0.33409935]
[1756847331863,0.61602306,111630.0,111620.0,0.33409935]
[1756847332924,0.21117942,111630.0,111620.0,0.33409935]
[1756847333138,0.61602306,111630.0,111620.0,0.33409935]
[1756847335714,0.21117942,111630.0,111620.0,0.33409935]
[1756847335922,0.61602306,111630.0,111620.0,0.15492]
[1756847336571,0.61602306,111630.0,111620.0,0.33409935]
[1756847336796,0.61602306,111630.0,111620.0,0.15492]
[1756847337965,0.21117942,111630.0,111620.0,0.33409935]
[1756847338195,0.61602306,111630.0,111620.0,0.33409935]
[1756847339816,0.02906612,111630.0,111620.0,0.33933935]
[1756847340002,0.02973554,111630.0,111620.0,0.33933935]
[1756847340500,0.43177976,111630.0,111620.0,0.33933935]
[1756847340782,0.61094306,111630.0,111620.0,0.33881935]
[1756847340985,0.43177976,111630.0,111620.0,0.33881935]
[1756847341392,0.43177976,111630.0,111620.0,0.33981935]
[1756847341978,0.43177976,111630.0,111620.0,0.34081935]
[1756847342871,0.61094306,111630.0,111620.0,0.34081935]
[1756847343143,0.61094306,111630.0,111620.0,0.18641935]
[1756847343337,0.61094306,111630.0,111620.0,0.34077935]
[1756847343576,0.61307306,111630.0,111620.0,0.33767935]
[1756847343935,0.43390976,111630.0,111620.0,0.33767935]
[1756847344154,0.61602306,111630.0,111620.0,0.33549935]
[1756847344819,0.61602306,111630.0,111620.0,0.18117935]
[1756847345036,0.61602306,111630.0,111620.0,0.33537935]
[1756847345960,0.61602306,111630.0,111620.0,0.1562]
[1756847346182,0.61602306,111630.0,111620.0,0.1552]
[1756847346609,0.61602306,111630.0,111620.0,0.1542]
[1756847347056,0.61602306,111630.0,111620.0,0.15432]
[1756847347903,0.17917935,111620.0,111600.0,0.27821352]
[1756847348128,0.58616905,111610.0,111600.0,0.25127753]
[1756847348257,0.58911905,111610.0,111600.0,0.40769753]
[1756847348492,0.61310695,111610.0,111600.0,0.40769753]
[1756847348700,0.43391154,111610.0,111600.0,0.25127753]
[1756847348909,0.61622695,111610.0,111600.0,0.40555753]
[1756847349309,0.61622695,111610.0,111600.0,0.40569798]
[1756847349310,0.62545079,111610.0,111600.0,0.40569798]
[1756847349822,0.62545079,111610.0,111600.0,0.06426045]
[1756847350027,0.62545079,111610.0,111600.0,0.33463191]
[1756847350640,0.59851289,111610.0,111600.0,0.33463191]
[1756847350840,0.59851289,111610.0,111600.0,0.00114045]
[1756847351078,0.59851289,111610.0,111600.0,0.15434045]
[1756847351283,0.59851289,111610.0,111600.0,0.00014045]
[1756847351460,0.59851289,111610.0,111600.0,0.15434045]
[1756847351883,0.62545406,111610.0,111600.0,0.15434045]
[1756847352641,1.12221369,111610.0,111600.0,0.00014045]
[1756847352859,1.12221369,111610.0,111600.0,0.15434045]
[1756847353068,1.27633369,111610.0,111600.0,0.00014045]
[1756847353308,0.87149005,111610.0,111600.0,0.00014045]
[1756847353935,0.71737005,111610.0,111600.0,0.00014045]
[1756847354146,0.87249005,111610.0,111600.0,0.00014045]
[1756847354345,0.87349005,111610.0,111600.0,0.00014045]
[1756847355022,0.71014621,111610.0,111600.0,0.17935191]
[1756847355463,0.71014621,111610.0,111600.0,0.18137191]
[1756847355676,0.30530257,111610.0,111600.0,0.18137191]
[1756847355910,0.71064058,111610.0,111600.0,0.18137191]
[1756847356345,0.70964058,111610.0,111600.0,0.18137191]
[1756847356777,0.70964058,111610.0,111600.0,0.00216045]
[1756847356997,0.71775039,111610.0,111600.0,0.00014045]
[1756847357926,0.71775039,111610.0,111600.0,0.15414045]
[1756847358713,0.31241238,111610.0,111600.0,0.33335191]
[1756847358915,0.02694117,111610.0,111600.0,0.33839191]
[1756847359170,0.00279992,111610.0,111600.0,0.33839191]
[1756847359742,0.02693863,111620.0,111610.0,0.17919541]
[1756847359940,0.1822833,111630.0,111620.0,0.17917935]
[1756847360147,0.64310639,111630.0,111620.0,0.33515935]
[1756847360374,0.0269371,111630.0,111620.0,0.33817935]
[1756847360576,0.20889982,111630.0,111620.0,0.33817935]
[1756847360788,0.3669371,111630.0,111620.0,0.33817935]
[1756847361639,0.0269371,111630.0,111620.0,0.33817935]
[1756847361851,0.58448627,111640.0,111630.0,0.1791633]
[1756847362053,1.04333706,111640.0,111630.0,0.1811833]
[1756847362495,0.63799905,111640.0,111630.0,0.1842033]
[1756847362706,1.04333706,111640.0,111630.0,0.1842033]
[1756847363080,1.04333706,111640.0,111630.0,0.1811833]
[1756847363302,1.04530706,111640.0,111630.0,0.1811833]
[1756847363530,1.04530605,111640.0,111630.0,0.1811833]
[1756847365854,0.63996804,111640.0,111630.0,0.1811833]
[1756847366095,1.04842605,111640.0,111630.0,0.1811833]
[1756847368031,1.04842605,111640.0,111630.0,0.3349433]
[1756847371633,0.3689048,111640.0,111630.0,0.1811833]
[1756847371827,0.54805205,111640.0,111630.0,0.3347433]
[1756847372308,0.95651006,111640.0,111630.0,0.3347433]
[1756847372530,0.95651006,111640.0,111630.0,0.3346633]
[1756847374188,0.77736281,111640.0,111630.0,0.3346633]
[1756847374300,0.77424281,111640.0,111630.0,0.3346633]
[1756847374537,0.52952009,111660.0,111630.0,0.34664146]
[1756847374751,0.02693045,111650.0,111640.0,0.17914725]
[1756847374967,0.02693045,111650.0,111640.0,0.18418725]
[1756847375169,0.43226846,111650.0,111640.0,0.18116725]
[1756847375398,0.43735846,111650.0,111640.0,0.33250725]
[1756847375615,0.43735846,111650.0,111640.0,0.33452725]
[1756847375820,0.62585748,111650.0,111640.0,0.17914725]
[1756847376024,0.62590433,111650.0,111640.0,0.33250725]
[1756847376485,0.62690433,111650.0,111640.0,0.15332]
[1756847377113,0.62790433,111650.0,111640.0,0.15332]
[1756847377999,0.62790433,111650.0,111640.0,0.33246725]
[1756847378616,0.62790433,111650.0,111640.0,0.17914725]
[1756847378822,0.62790433,111650.0,111640.0,0.33242725]
[1756847380437,0.43628531,111650.0,111640.0,0.33449725]
[1756847380621,0.0289773,111650.0,111640.0,0.33753725]
[1756847383178,0.00204685,111650.0,111640.0,0.33753725]
[1756847383360,0.00204685,111650.0,111640.0,0.18425725]
[1756847383502,0.00484577,111650.0,111640.0,0.18425725]
[1756847383719,0.00484577,111650.0,111640.0,0.33741725]
[1756847384106,0.00384577,111650.0,111640.0,0.33741725]
[1756847385176,0.00104685,111650.0,111640.0,0.33741725]
[1756847385421,0.00104685,111650.0,111640.0,0.40049725]
[1756847386069,4.685e-05,111650.0,111640.0,0.40049725]
[1756847391345,4.685e-05,111650.0,111640.0,0.24741725]
[1756847391593,4.685e-05,111650.0,111640.0,0.40025725]
[1756847393770,4.685e-05,111650.0,111640.0,0.40017725]
[1756847396133,4.685e-05,111650.0,111640.0,0.40005725]
[1756847399179,4.685e-05,111650.0,111640.0,0.24741725]
[1756847399389,4.685e-05,111650.0,111640.0,0.39997725]
[1756847400017,4.685e-05,111650.0,111640.0,0.39989725]
[1756847402008,4.685e-05,111650.0,111640.0,0.39985725]
[1756847402546,4.685e-05,111650.0,111640.0,0.24741725]
[1756847402755,4.685e-05,111650.0,111640.0,0.39985725]
[1756847404534,4.685e-05,111650.0,111640.0,0.24741725]
[1756847404752,4.685e-05,111650.0,111640.0,0.39981725]
[1756847405440,4.685e-05,111650.0,111640.0,0.39989725]
[1756847406114,4.685e-05,111650.0,111640.0,0.24437725]
[1756847406342,4.685e-05,111650.0,111640.0,0.39989725]
[1756847406828,4.685e-05,111650.0,111640.0,0.39985725]
[1756847407881,4.685e-05,111650.0,111640.0,0.24741725]
[1756847408092,4.685e-05,111650.0,111640.0,0.39985725]
[1756847413584,4.685e-05,111650.0,111640.0,0.40009725]
[1756847415239,4.685e-05,111650.0,111640.0,0.24741725]
[1756847415473,4.685e-05,111650.0,111640.0,0.40001725]
[1756847417204,4.685e-05,111650.0,111640.0,0.24741725]
[1756847417377,4.685e-05,111650.0,111640.0,0.40001725]
[1756847417793,0.40502361,111650.0,111640.0,0.40001725]
[1756847423725,4.685e-05,111650.0,111640.0,0.40001725]
[1756847428971,4.685e-05,111650.0,111640.0,0.80499401]
[1756847432128,4.685e-05,111650.0,111640.0,0.40001725]
[1756847432369,4.685e-05,111650.0,111640.0,0.80499401]
[1756847436826,0.00219685,111650.0,111640.0,0.24437725]
[1756847437037,0.00219685,111650.0,111640.0,0.39641725]
[1756847437684,4.685e-05,111650.0,111640.0,0.39948725]
[1756847438856,4.685e-05,111650.0,111640.0,0.24744725]
[1756847439060,4.685e-05,111650.0,111640.0,0.39948725]
[1756847439763,4.685e-05,111650.0,111640.0,0.80446401]
[1756847441080,4.685e-05,111650.0,111640.0,0.39948725]
[1756847443810,4.685e-05,111650.0,111640.0,0.39944725]
[1756847445587,4.685e-05,111650.0,111640.0,0.33628725]
[1756847445807,4.685e-05,111650.0,111640.0,0.33620725]
[1756847448567,4.685e-05,111650.0,111640.0,0.18428725]
[1756847448774,4.685e-05,111650.0,111640.0,0.33612725]
[1756847452901,4.685e-05,111650.0,111640.0,0.18428725]
[1756847453104,0.40502361,111650.0,111640.0,0.33600725]
[1756847455451,0.40502361,111650.0,111640.0,0.18428725]
[1756847455662,0.40502361,111650.0,111640.0,0.33592725]
[1756847458031,4.685e-05,111650.0,111640.0,0.33592725]
[1756847459168,4.685e-05,111650.0,111640.0,0.18428725]
[1756847459320,4.685e-05,111650.0,111640.0,0.33592725]
[1756847462985,4.685e-05,111650.0,111640.0,0.18428725]
[1756847463200,4.685e-05,111650.0,111640.0,0.33592725]
[1756847463896,0.40502361,111650.0,111640.0,0.33592725]
[1756847464938,0.40502361,111650.0,111640.0,0.18428725]
[1756847465139,0.40502361,111650.0,111640.0,0.33592725]
[1756847466513,0.40502361,111650.0,111640.0,0.18428725]
[1756847466685,0.40502361,111650.0,111640.0,0.33588725]
[1756847467260,0.41017361,111650.0,111640.0,0.33281725]
[1756847467532,0.40718361,111650.0,111640.0,0.33281725]
[1756847468830,4.685e-05,111650.0,111640.0,0.33595725]
[1756847469242,0.40502361,111650.0,111640.0,0.33595725]
[1756847469423,0.40705361,111650.0,111640.0,0.33281725]
[1756847471056,0.43398039,111650.0,111640.0,0.33281725]
[1756847472851,0.02900363,111650.0,111640.0,0.33595725]
[1756847473054,0.43398039,111650.0,111640.0,0.33281725]
[1756847473283,0.02900363,111650.0,111640.0,0.33281725]
[1756847476129,0.02900363,111650.0,111640.0,0.33595725]
[1756847477358,0.02697363,111650.0,111640.0,0.33595725]
[1756847481845,0.02697363,111650.0,111640.0,0.18435725]
[1756847482024,0.02697363,111650.0,111640.0,0.33595725]
[1756847482798,0.02697363,111650.0,111640.0,0.33695725]
[1756847483244,0.02697363,111650.0,111640.0,0.33795725]
[1756847495363,0.02697363,111650.0,111640.0,0.18635725]
[1756847495569,0.02697363,111650.0,111640.0,0.33795725]
[1756847496704,0.02900363,111650.0,111640.0,0.33481725]
[1756847497115,0.02697363,111650.0,111640.0,0.33481725]
[1756847497324,0.02900363,111650.0,111640.0,0.33481725]
[1756847497537,0.02697363,111650.0,111640.0,0.33795725]
[1756847511248,0.02697363,111650.0,111640.0,0.36488403]
[1756847512800,0.02697363,111650.0,111640.0,0.42800403]
[1756847514626,0.02697363,111650.0,111640.0,0.27640403]
[1756847514850,0.02697363,111650.0,111640.0,0.42792403]
[1756847517815,0.02697363,111650.0,111640.0,0.832898]
[1756847518044,0.02697363,111650.0,111640.0,0.42792403]
[1756847523537,0.02895363,111650.0,111640.0,0.42478403]
[1756847523747,0.02697363,111650.0,111640.0,0.42801403]
[1756847527122,0.02895363,111650.0,111640.0,0.42478403]
[1756847527330,0.02895363,111650.0,111640.0,0.42801403]
[1756847527331,0.02697363,111650.0,111640.0,0.42801403]
[1756847527546,0.03193363,111650.0,111640.0,0.27326403]
[1756847527732,0.03193363,111650.0,111640.0,0.42474403]
[1756847527866,0.00202685,111650.0,111640.0,0.42474403]
[1756847528621,0.00202685,111650.0,111640.0,0.27326403]
[1756847528807,0.00202685,111650.0,111640.0,0.42474403]
[1756847529513,0.00202685,111650.0,111640.0,0.27326403]
[1756847529737,0.00202685,111650.0,111640.0,0.42474403]
[1756847529900,0.00202685,111650.0,111640.0,0.27326403]
[1756847530116,0.00202685,111650.0,111640.0,0.42474403]
[1756847536786,0.00202685,111650.0,111640.0,0.42787403]
[1756847536787,4.685e-05,111650.0,111640.0,0.42787403]
[1756847539509,4.685e-05,111650.0,111640.0,0.83282599]
[1756847545604,4.685e-05,111650.0,111640.0,1.59889394]
[1756847546459,6.85e-06,111650.0,111640.0,1.59889394]
[1756847550499,6.85e-06,111650.0,111640.0,0.78899002]
[1756847550704,6.85e-06,111650.0,111640.0,1.59889394]
[1756847557167,6.85e-06,111650.0,111640.0,0.78899002]
[1756847557336,6.85e-06,111650.0,111640.0,1.59885394]
[1756847557748,6.85e-06,111650.0,111640.0,0.63751002]
[1756847557903,6.85e-06,111650.0,111640.0,1.59885394]
[1756847560105,6.85e-06,111650.0,111640.0,0.78895002]
[1756847560312,6.85e-06,111650.0,111640.0,1.59885394]
[1756847564702,6.85e-06,111650.0,111640.0,0.78895002]
[1756847564948,6.85e-06,111650.0,111640.0,1.59885394]
[1756847573975,6.85e-06,111650.0,111640.0,1.59877394]
[1756847574434,0.00437917,111660.0,111650.0,0.58408317]
[1756847574685,0.00437917,111660.0,111650.0,0.82749961]
[1756847574907,0.00637917,111660.0,111650.0,0.82749961]
[1756847575563,0.00637917,111660.0,111650.0,0.85442284]
[1756847575722,0.00344917,111660.0,111650.0,0.85646284]
[1756847576150,0.00637917,111660.0,111650.0,0.85646284]
[1756847579461,0.00637917,111660.0,111650.0,0.70510284]
[1756847579669,0.00637917,111660.0,111650.0,0.85646284]
[1756847579843,0.00637917,111660.0,111650.0,0.70510284]
[1756847580057,0.00637917,111660.0,111650.0,0.85646284]
[1756847580864,0.4141298,111660.0,111650.0,0.17927166]
[1756847581060,0.59306934,111680.0,111660.0,0.1791029]
[1756847581277,0.40775038,111670.0,111660.0,0.1791029]
[1756847581483,0.40695196,111670.0,111660.0,0.3304629]
[1756847581691,0.43387731,111670.0,111660.0,0.3304629]
[1756847581855,0.43387731,111670.0,111660.0,0.1791029]
[1756847582055,0.02892535,111670.0,111660.0,0.3304629]
[1756847582288,0.43667573,111670.0,111660.0,0.36982775]
[1756847582537,0.43387731,111670.0,111660.0,0.36982775]
[1756847582720,0.43487731,111670.0,111660.0,0.36982775]
[1756847583110,0.43742731,111670.0,111660.0,0.36982775]
[1756847583459,0.43842731,111670.0,111660.0,0.36982775]
[1756847587838,0.43842731,111670.0,111660.0,0.3304629]
[1756847592332,0.43587731,111670.0,111660.0,0.3304629]
[1756847597598,0.61497644,111670.0,111660.0,0.3304629]
[1756847597806,0.43587731,111670.0,111660.0,0.3304629]
[1756847599590,0.43582415,111670.0,111660.0,0.3304629]
[1756847603820,0.43582415,111670.0,111660.0,0.3335229]
[1756847604936,0.43174415,111670.0,111660.0,0.3356329]
[1756847605138,0.02684535,111670.0,111660.0,0.3356329]
[1756847605344,0.02964377,111670.0,111660.0,0.3356329]
[1756847606816,0.02872377,111670.0,111660.0,0.3356329]
[1756847607247,0.02592535,111670.0,111660.0,0.3356329]
[1756847607470,0.02592535,111670.0,111660.0,0.37536085]
[1756847608796,0.02872377,111670.0,111660.0,0.38420939]
[1756847609474,0.02872377,111670.0,111660.0,0.37536085]
[1756847610719,0.02684535,111670.0,111660.0,0.37536085]
[1756847610920,0.02872377,111670.0,111660.0,0.37528085]
[1756847620649,0.02872377,111670.0,111660.0,0.43840085]
[1756847621739,0.02872377,111670.0,111660.0,0.28712085]
[1756847622041,0.02872377,111670.0,111660.0,0.43840085]
[1756847622659,0.02872377,111670.0,111660.0,0.3986729]
[1756847626901,0.02592535,111670.0,111660.0,0.3986729]
[1756847629682,0.02872377,111670.0,111660.0,0.3986729]
[1756847632560,0.02872377,111670.0,111660.0,0.43905848]
[1756847638060,0.02592535,111670.0,111660.0,0.43905848]
[1756847639454,0.02872377,111670.0,111660.0,0.43905848]
[1756847640396,0.02872377,111670.0,111660.0,0.43903075]
[1756847640613,0.02092535,111670.0,111660.0,0.43899075]
[1756847640840,0.02372377,111670.0,111660.0,0.43899075]
[1756847642330,0.02372377,111670.0,111660.0,0.28779075]
[1756847642539,0.02372377,111670.0,111660.0,0.43899075]
[1756847643369,0.02092535,111670.0,111660.0,0.43899075]
[1756847643975,0.02092535,111670.0,111660.0,0.28779075]
[1756847644180,0.02092535,111670.0,111660.0,0.43899075]
[1756847644326,0.02372377,111670.0,111660.0,0.43899075]
[1756847645231,0.2028229,111670.0,111660.0,0.28779075]
[1756847645442,0.02092535,111670.0,111660.0,0.43899075]
[1756847645658,0.02372377,111670.0,111660.0,0.43899075]
[1756847647708,0.02372377,111670.0,111660.0,0.39860517]
[1756847651281,0.00479842,111670.0,111660.0,0.39860517]
[1756847651728,0.03172169,111670.0,111660.0,0.39860517]
[1756847660650,0.02892327,111670.0,111660.0,0.39860517]
[1756847661854,0.02892327,111670.0,111660.0,0.4397331]
[1756847664257,0.02892327,111670.0,111660.0,0.84456881]
[1756847664657,0.03172169,111670.0,111660.0,0.84456881]
[1756847665426,0.03172169,111670.0,111660.0,1.24940452]
[1756847665647,0.002,111670.0,111660.0,1.76864622]
[1756847665867,0.002,111670.0,111660.0,1.39072975]
[1756847666053,0.002,111670.0,111660.0,1.79072975]
[1756847666255,8e-05,111680.0,111670.0,0.51909913]
[1756847666458,8e-05,111680.0,111670.0,1.42068654]
[1756847666674,8e-05,111680.0,111670.0,1.42584654]
[1756847666816,8e-05,111680.0,111670.0,1.82584654]
[1756847667448,8e-05,111680.0,111670.0,1.98055527]
[1756847667877,8e-05,111680.0,111670.0,1.98155527]
[1756847669044,8e-05,111680.0,111670.0,1.98255527]
[1756847671766,8e-05,111680.0,111670.0,1.83143527]
[1756847671944,8e-05,111680.0,111670.0,1.98251527]
[1756847677682,8e-05,111680.0,111670.0,1.83143527]
[1756847677882,8e-05,111680.0,111670.0,1.98251527]
[1756847689498,8e-05,111680.0,111670.0,1.83143527]
[1756847689714,8e-05,111680.0,111670.0,1.98243527]
[1756847690715,8e-05,111680.0,111670.0,1.58243527]
[1756847691557,8e-05,111680.0,111670.0,1.77967527]
[1756847693415,8e-05,111680.0,111670.0,2.17967527]
[1756847695338,1.04e-05,111680.0,111670.0,2.17967527]
[1756847696727,1.04e-05,111680.0,111670.0,2.02867527]
[1756847696956,0.002,111690.0,111680.0,0.17908309]
[1756847697284,0.002,111690.0,111680.0,1.23643393]
[1756847697490,0.002,111690.0,111680.0,1.2369405]
[1756847697713,0.002,111690.0,111680.0,1.263856]
[1756847698523,0.002,111690.0,111680.0,1.264856]
[1756847698858,0.48717766,111710.0,111700.0,0.17905102]
[1756847699061,0.48809766,111710.0,111700.0,0.39313102]
[1756847699538,0.41455135,111710.0,111700.0,0.42004652]
[1756847700145,0.41701998,111710.0,111700.0,0.42004652]
[1756847700752,0.41901998,111710.0,111700.0,0.42004652]
[1756847703394,0.41901998,111710.0,111700.0,0.42888928]
[1756847703619,0.41843998,111710.0,111700.0,0.42888928]
[1756847703867,0.01360427,111710.0,111700.0,0.42888928]
[1756847704068,0.01310427,111710.0,111700.0,0.42888928]
[1756847704483,0.41793998,111710.0,111700.0,0.42888928]
[1756847704694,0.41593998,111710.0,111700.0,0.42888928]
[1756847704988,0.01010427,111710.0,111700.0,0.42888928]
[1756847705246,0.41493998,111710.0,111700.0,0.42888928]
[1756847706298,0.59397498,111710.0,111700.0,0.26908652]
[1756847706566,0.41493998,111710.0,111700.0,0.39309102]
[1756847706800,0.41593998,111710.0,111700.0,0.39309102]
[1756847708128,0.59497498,111710.0,111700.0,0.39309102]
[1756847708332,0.41593998,111710.0,111700.0,0.39309102]
[1756847708911,0.01110427,111710.0,111700.0,0.39309102]
[1756847709268,0.41593998,111710.0,111700.0,0.24217102]
[1756847709478,0.41593998,111710.0,111700.0,0.39309102]
[1756847709891,0.59497498,111710.0,111700.0,0.24217102]
[1756847710095,0.59497498,111710.0,111700.0,0.39309102]
[1756847710317,0.41593998,111710.0,111700.0,0.39309102]
[1756847711361,0.41235124,111710.0,111700.0,0.39309102]
[1756847717317,0.59138624,111710.0,111700.0,0.39305102]
[1756847717518,0.59138624,111710.0,111700.0,0.24217102]
[1756847717718,0.41235124,111710.0,111700.0,0.39621102]
[1756847719154,0.59138624,111710.0,111700.0,0.24217102]
[1756847719376,0.59138624,111710.0,111700.0,0.39621102]
[1756847719581,0.41235124,111710.0,111700.0,0.39621102]
[1756847719780,0.41235124,111710.0,111700.0,0.39832102]
[1756847720294,0.41235124,111710.0,111700.0,0.39621102]
[1756847721125,0.41235124,111710.0,111700.0,0.24533102]
[1756847721333,0.41235124,111710.0,111700.0,0.39621102]
[1756847721568,0.00751553,111710.0,111700.0,0.39621102]
[1756847721800,0.01031295,111710.0,111700.0,0.39617102]
[1756847723513,0.01031295,111710.0,111700.0,0.39828102]
[1756847727912,0.18934795,111710.0,111700.0,0.39828102]
[1756847728124,0.18655053,111710.0,111700.0,0.39828102]
[1756847729181,0.00751553,111710.0,111700.0,0.39828102]
[1756847729413,0.01031295,111710.0,111700.0,0.39828102]
[1756847729634,0.00939295,111710.0,111700.0,0.39828102]
[1756847734368,0.00659553,111710.0,111700.0,0.39828102]
[1756847735312,0.00659553,111710.0,111700.0,0.8028558]
[1756847735777,0.00559553,111710.0,111700.0,0.8028558]
[1756847736221,0.00459553,111710.0,111700.0,0.8028558]
[1756847736435,0.00459553,111710.0,111700.0,0.8038558]
[1756847737571,0.00459553,111710.0,111700.0,0.89577179]
[1756847739336,0.00459553,111710.0,111700.0,0.74493179]
[1756847739598,0.00459553,111710.0,111700.0,0.89573179]
[1756847740845,0.00459553,111710.0,111700.0,0.74493179]
[1756847741114,0.00459553,111710.0,111700.0,0.89569179]
[1756847746927,0.00459553,111710.0,111700.0,0.49111701]
[1756847747174,0.00459553,111710.0,111700.0,0.89569179]
[1756847747847,0.00459553,111710.0,111700.0,0.91964179]
[1756847748074,0.00459553,111710.0,111700.0,0.94655055]
[1756847750797,0.00459553,111710.0,111700.0,0.94651055]
[1756847751244,0.00459553,111710.0,111700.0,0.79579055]
[1756847751453,0.00459553,111710.0,111700.0,0.94651055]
[1756847751882,0.00459553,111710.0,111700.0,0.79579055]
[1756847752101,0.00459553,111710.0,111700.0,0.94651055]
[1756847752486,0.00459553,111710.0,111700.0,0.92256055]
[1756847753110,0.00459553,111710.0,111700.0,0.77184055]
[1756847753335,0.00551553,111710.0,111700.0,0.36726577]
[1756847753591,0.00551553,111710.0,111700.0,0.51798577]
[1756847753821,0.00459553,111710.0,111700.0,0.51798577]
[1756847754249,0.00551553,111710.0,111700.0,0.51798577]
[1756847754450,0.00459553,111710.0,111700.0,0.51798577]
[1756847755550,0.00459553,111710.0,111700.0,0.92256055]
[1756847755759,0.00551553,111710.0,111700.0,0.39701102]
[1756847755973,0.00551553,111710.0,111700.0,0.39907102]
[1756847756246,0.00459553,111710.0,111700.0,0.39907102]
[1756847761064,0.00459553,111710.0,111700.0,0.8036458]
[1756847763277,0.00459553,111710.0,111700.0,0.39907102]
[1756847763738,0.00459553,111710.0,111700.0,0.8036458]
[1756847763956,0.00459553,111710.0,111700.0,0.6529658]
[1756847764175,0.00459553,111710.0,111700.0,0.8036458]
[1756847764921,0.00459553,111710.0,111700.0,0.39907102]
[1756847775512,0.00459553,111710.0,111700.0,0.39701102]
[1756847775730,0.00459553,111710.0,111700.0,0.39910102]
[1756847776829,0.00459553,111710.0,111700.0,0.8036758]
[1756847779570,0.00459553,111710.0,111700.0,0.39910102]
[1756847779797,0.00459553,111710.0,111700.0,0.8036758]
[1756847781571,0.00459553,111710.0,111700.0,0.80359652]
[1756847781787,0.00459553,111710.0,111700.0,0.80351652]
[1756847783512,0.00459553,111710.0,111700.0,0.39902102]
[1756847783715,0.00459553,111710.0,111700.0,0.80351652]
[1756847784245,0.42164805,111720.0,111710.0,0.179035]
[1756847784454,0.42256805,111720.0,111710.0,0.17917517]
[1756847784649,0.24354856,111720.0,111710.0,0.18240517]
[1756847784855,0.00092,111720.0,111710.0,0.18240517]
[1756847785058,0.58723164,111720.0,111710.0,0.18240517]
[1756847785228,0.58443447,111720.0,111710.0,0.18240517]
[1756847785416,0.58543447,111720.0,111710.0,0.18240517]
[1756847785613,0.58643447,111720.0,111710.0,0.18240517]
[1756847785814,0.58643447,111720.0,111710.0,0.00014017]
[1756847786016,0.58643447,111720.0,111710.0,0.15070017]
[1756847786220,0.61334796,111720.0,111710.0,0.15070017]